fUST/lending_fUST_20241229
["ID","MTS","AMOUNT","RATE_DAILY","PERIOD"]
[346990782,1735456242713,-500.0,9.839e-05,2]
[346990783,1735456242722,-500.0,9.839e-05,2]
[346990784,1735456242731,-500.0,9.839e-05,2]
[346990785,1735456242740,-500.0,9.839e-05,2]
[346990786,1735456242750,-500.0,9.839e-05,2]
[346990787,1735456242759,-500.0,9.839e-05,2]
[346990788,1735456242767,-500.0,9.839e-05,2]
[346990789,1735456242776,-500.0,9.839e-05,2]
[346990790,1735456242785,-500.0,9.839e-05,2]
[346990791,1735456242795,-500.0,9.839e-05,2]
[346990792,1735456242804,-500.0,9.839e-05,2]
[346990793,1735456242814,-500.0,9.839e-05,2]
[346990794,1735456242824,-500.0,9.839e-05,2]
[346990795,1735456242833,-258.32,9.839e-05,2]
[346990796,1735456242843,-500.0,9.839e-05,2]
[346990797,1735456242853,-503.51220669,9.839e-05,2]
[346990798,1735456242862,-500.0,9.839e-05,2]
[346990799,1735456242871,-500.0,9.839e-05,2]
[346990800,1735456242880,-500.0,9.839e-05,2]
[346990801,1735456242890,-500.0,9.839e-05,2]
[346990802,1735456242900,-683.51,9.839e-05,2]
[346990803,1735456242909,-500.0,9.839e-05,2]
[346990804,1735456242917,-500.0,9.839e-05,2]
[346990805,1735456242927,-500.0,9.839e-05,2]
[346990806,1735456242936,-500.0,9.839e-05,2]
[346990807,1735456242945,-9639.01,9.839e-05,2]
[346990808,1735456242955,-500.0,9.839e-05,2]
[346990809,1735456242964,-497.1,9.839e-05,2]
[346990810,1735456242973,-500.0,9.839e-05,2]
[346990811,1735456242982,-500.0,9.839e-05,2]
[346990812,1735456242991,-500.0,9.839e-05,2]
[346990813,1735456243000,-500.0,9.839e-05,2]
[346990814,1735456243009,-500.0,9.839e-05,2]
[346990815,1735456243018,-500.0,9.839e-05,2]
[346990816,1735456243027,-500.0,9.839e-05,2]
[346990817,1735456243036,-500.0,9.839e-05,2]
[346990818,1735456243045,-500.0,9.84e-05,2]
[346990819,1735456243054,-500.0,9.84e-05,2]
[346990820,1735456243064,-500.0,9.84e-05,2]
[346990821,1735456243073,-558.68,9.84e-05,2]
[346990823,1735456243082,-500.0,9.84e-05,2]
[346990835,1735456243156,-500.0,9.84e-05,2]
[346990837,1735456243174,-500.0,9.84e-05,2]
[346990838,1735456243183,-500.0,9.84e-05,2]
[346990839,1735456243192,-511.39242007,9.84e-05,2]
[346990840,1735456243202,-500.0,9.84e-05,2]
[346990841,1735456243211,-500.0,9.84e-05,2]
[346990842,1735456243220,-500.0,9.841e-05,2]
[346990843,1735456243230,-763.29,9.841e-05,2]
[346990844,1735456243239,-500.0,9.841e-05,2]
[346990845,1735456243249,-500.0,9.841e-05,2]
[346990847,1735456243258,-500.0,9.841e-05,2]
[346990849,1735456243268,-500.0,9.841e-05,2]
[346990851,1735456243278,-1366.2,9.842e-05,2]
[346990853,1735456243287,-500.0,9.842e-05,2]
[346990855,1735456243297,-782.04,9.842e-05,2]
[346990856,1735456243306,-189.78338488,0.0001,2]
[346990858,1735456243316,-1868.02696618,0.00010083,2]
[346990860,1735456243325,-500.0,0.00010112,2]
[346990862,1735456243335,-500.0,0.00010112,2]
[346990864,1735456243344,-1162.47,0.00010112,2]
[346990865,1735456243353,-500.0,0.00010112,2]
[346990866,1735456243366,-657.08,0.00010112,2]
[346990867,1735456243376,-500.0,0.00010112,2]
[346990868,1735456243385,-500.0,0.00010112,2]
[346990869,1735456243394,-500.0,0.00010112,2]
[346990870,1735456243404,-463.40075622,0.00010112,2]
[346990871,1735456243414,-821.02,0.00010112,2]
[346990872,1735456243423,-500.0,0.00010112,2]
[346990873,1735456243432,-500.0,0.00010112,2]
[346990874,1735456243442,-520.31,0.00010112,2]
[346990875,1735456243452,-500.0,0.00010112,2]
[346990876,1735456243461,-500.0,0.00010113,2]
[346990877,1735456243470,-500.0,0.00010113,2]
[346990878,1735456243479,-500.0,0.00010113,2]
[346990879,1735456243489,-160.02,0.00010113,2]
[346990880,1735456243498,-500.0,0.00010113,2]
[346990881,1735456243507,-500.0,0.00010113,2]
[346990882,1735456243517,-500.0,0.00010113,2]
[346990883,1735456243526,-500.0,0.00010113,2]
[346990884,1735456243535,-500.0,0.00010113,2]
[346990885,1735456243544,-500.0,0.00010113,2]
[346990886,1735456243554,-500.0,0.00010113,2]
[346990887,1735456243563,-500.0,0.00010113,2]
[346990888,1735456243575,-500.0,0.00010113,2]
[346990889,1735456243585,-500.0,0.00010113,2]
[346990890,1735456243594,-500.0,0.00010113,2]
[346990891,1735456243604,-500.0,0.00010113,2]
[346990892,1735456243613,-500.0,0.00010113,2]
[346990893,1735456243622,-500.0,0.00010113,2]
[346990894,1735456243631,-500.0,0.00010113,2]
[346990895,1735456243641,-500.0,0.00010113,2]
[346990896,1735456243651,-500.0,0.00010113,2]
[346990897,1735456243660,-500.0,0.00010113,2]
[346990898,1735456243669,-500.0,0.00010113,2]
[346990899,1735456243679,-500.0,0.00010113,2]
[346990900,1735456243688,-330.44,0.00010113,2]
[346990901,1735456243698,-221.76,0.00010113,2]
[346990902,1735456243707,-500.0,0.00010113,2]
[346990903,1735456243716,-9639.01,0.00010113,2]
[346990904,1735456243725,-500.0,0.00010113,2]
[346990905,1735456243734,-159.1,0.00010113,2]
[346990906,1735456243743,-500.0,0.00010113,2]
[346990907,1735456243752,-500.0,0.00010113,2]
[346990908,1735456243762,-500.0,0.00010113,2]
[346990909,1735456243771,-500.0,0.00010113,2]
[346990910,1735456243780,-582.48,0.00010113,2]
[346990911,1735456243789,-500.0,0.00010113,2]
[346990912,1735456243798,-500.0,0.00010114,2]
[346990913,1735456243807,-500.0,0.00010114,2]
[346990914,1735456243817,-500.0,0.00010114,2]
[346990915,1735456243826,-432.63623187,0.00010114,2]
[346990916,1735456243834,-420.28,0.00010114,2]
[346990917,1735456243844,-500.0,0.00010114,2]
[346990918,1735456243855,-500.0,0.00010114,2]
[346990919,1735456243864,-683.51,0.00010114,2]
[346990920,1735456243873,-763.29,0.00010115,2]
[346990921,1735456243882,-500.0,0.00010115,2]
[346990922,1735456243892,-500.0,0.00010115,2]
[346990923,1735456243901,-500.0,0.00010115,2]
[346990924,1735456243910,-1366.2,0.00010116,2]
[346990925,1735456243920,-179.08,0.00010116,2]
[346990926,1735456243929,-782.04,0.00010116,2]
[346990927,1735456243939,-500.0,0.00010386,2]
[346990928,1735456243948,-615.54193878,0.00010386,2]
[346990929,1735456243958,-1162.47,0.00010386,2]
[346990930,1735456243967,-500.0,0.00010386,2]
[346990931,1735456243976,-657.08,0.00010386,2]
[346990932,1735456243986,-500.0,0.00010386,2]
[346990933,1735456243995,-500.0,0.00010386,2]
[346990934,1735456244004,-500.0,0.00010386,2]
[346990935,1735456244015,-821.02,0.00010386,2]
[346990936,1735456244025,-500.0,0.00010386,2]
[346990937,1735456244034,-500.0,0.00010386,2]
[346990938,1735456244043,-520.31,0.00010386,2]
[346990939,1735456244053,-500.0,0.00010386,2]
[346990940,1735456244062,-500.0,0.00010387,2]
[346990941,1735456244072,-500.0,0.00010387,2]
[346990942,1735456244081,-500.0,0.00010387,2]
[346990943,1735456244090,-164.06,0.00010387,2]
[346990944,1735456244100,-500.0,0.00010387,2]
[346990945,1735456244109,-500.0,0.00010387,2]
[346990946,1735456244119,-500.0,0.00010387,2]
[346990947,1735456244129,-500.0,0.00010387,2]
[346990948,1735456244138,-500.0,0.00010387,2]
[346990949,1735456244148,-500.0,0.00010387,2]
[346990950,1735456244157,-180.19,0.00010387,2]
[346990951,1735456244166,-500.0,0.00010387,2]
[346990952,1735456244175,-345.02,0.00010387,2]
[346990953,1735456244185,-159.83782104,0.00010387,2]
[346990954,1735456244194,-219.27,0.00010387,2]
[346990955,1735456244203,-500.0,0.00010387,2]
[346990956,1735456244212,-9639.01,0.00010387,2]
[346990957,1735456244222,-500.0,0.00010387,2]
[346990958,1735456244230,-500.0,0.00010387,2]
[346990959,1735456244240,-500.0,0.00010387,2]
[346990960,1735456244249,-500.0,0.00010387,2]
[346990961,1735456244259,-500.0,0.00010388,2]
[346990962,1735456244268,-500.0,0.00010388,2]
[346990963,1735456244277,-500.0,0.00010388,2]
[346990964,1735456244287,-763.29,0.00010389,2]
[346990965,1735456244295,-500.0,0.00010389,2]
[346990966,1735456244304,-500.0,0.00010389,2]
[346990967,1735456244313,-1366.2,0.0001039,2]
[346990968,1735456244322,-782.04,0.0001039,2]
[346990969,1735456244331,-500.51674004,0.00010411,2]
[346990970,1735456244339,-500.0,0.00010411,2]
[346990971,1735456244348,-500.0,0.00010414,2]
[346990972,1735456244361,-279.95,0.0001066,2]
[346990973,1735456244370,-1162.47,0.0001066,2]
[346990974,1735456244379,-221.77,0.0001066,2]
[346990975,1735456244388,-657.08,0.0001066,2]
[346990976,1735456244397,-500.0,0.0001066,2]
[346990977,1735456244407,-500.0,0.0001066,2]
[346990978,1735456244416,-500.0,0.0001066,2]
[346990979,1735456244425,-821.02,0.0001066,2]
[346990980,1735456244435,-500.0,0.0001066,2]
[346990981,1735456244444,-500.0,0.0001066,2]
[346990982,1735456244453,-520.31,0.0001066,2]
[346990983,1735456244462,-500.0,0.0001066,2]
[346990984,1735456244472,-417.59012548,0.00010661,2]
[346990985,1735456244481,-500.0,0.00010661,2]
[346990986,1735456244490,-500.0,0.00010661,2]
[346990987,1735456244499,-500.0,0.00010661,2]
[346990988,1735456244509,-500.0,0.00010661,2]
[346990989,1735456244520,-500.0,0.00010661,2]
[346990990,1735456244529,-500.0,0.00010661,2]
[346990991,1735456244539,-500.0,0.00010661,2]
[346990992,1735456244548,-9639.01,0.00010661,2]
[346990993,1735456244557,-500.0,0.00010661,2]
[346990994,1735456244567,-500.0,0.00010661,2]
[346990995,1735456244576,-500.0,0.00010661,2]
[346990996,1735456244585,-500.0,0.00010662,2]
[346990997,1735456244594,-500.0,0.00010662,2]
[346990998,1735456244603,-500.0,0.00010662,2]
[346990999,1735456244612,-763.29,0.00010663,2]
[346991000,1735456244621,-500.0,0.00010663,2]
[346991001,1735456244630,-484.95445438,0.00010663,2]
[346991002,1735456244639,-1366.2,0.00010664,2]
[346991003,1735456244648,-782.04,0.00010664,2]
[346991004,1735456244657,-1162.47,0.00010934,2]
[346991005,1735456244666,-657.08,0.00010934,2]
[346991006,1735456244675,-500.0,0.00010934,2]
[346991007,1735456244684,-500.0,0.00010934,2]
[346991008,1735456244694,-500.0,0.00010934,2]
[346991009,1735456244704,-821.02,0.00010934,2]
[346991010,1735456244715,-500.0,0.00010934,2]
[346991011,1735456244724,-500.0,0.00010934,2]
[346991012,1735456244733,-520.31,0.00010934,2]
[346991013,1735456244743,-500.0,0.00010934,2]
[346991014,1735456244753,-500.0,0.00010935,2]
[346991015,1735456244763,-500.0,0.00010935,2]
[346991016,1735456244772,-614.15702218,0.00010935,2]
[346991017,1735456244781,-500.0,0.00010935,2]
[346991018,1735456244791,-500.0,0.00010935,2]
[346991019,1735456244801,-500.0,0.00010935,2]
[346991020,1735456244810,-514.19,0.00010935,2]
[346991021,1735456244820,-9639.01,0.00010935,2]
[346991022,1735456244831,-500.0,0.00010935,2]
[346991023,1735456244840,-500.0,0.00010935,2]
[346991024,1735456244850,-500.0,0.00010935,2]
[346991025,1735456244860,-500.0,0.00010936,2]
[346991026,1735456244869,-500.0,0.00010936,2]
[346991027,1735456244878,-763.29,0.00010937,2]
[346991028,1735456244888,-500.0,0.00010937,2]
[346991029,1735456244898,-1366.2,0.00010938,2]
[346991030,1735456244907,-782.04,0.00010938,2]
[346991031,1735456244916,-683.51,0.00010958,2]
[346991032,1735456244926,-151.0,0.00010959,2]
[346991033,1735456244935,-151.0,0.00010959,2]
[346991034,1735456244946,-153.760651,0.00010959,2]
[346991035,1735456244955,-1003.08526418,0.00010959,2]
[346991036,1735456244965,-466.7574346,0.00010962,2]
[346991037,1735456244975,-1868.02696618,0.00010973,2]
[346991038,1735456244984,-151.0,0.00010973,2]
[346991039,1735456244994,-151.0,0.00010973,2]
[346991040,1735456245003,-194.580772,0.00010973,2]
[346991041,1735456245083,-151.0,0.00010973,2]
[346991042,1735456245093,-151.0,0.00010973,2]
[346991043,1735456245103,-151.0,0.00010973,2]
[346991044,1735456245112,-206.523486,0.00010973,2]
[346991045,1735456245122,-151.0,0.00010973,2]
[346991046,1735456245132,-151.0,0.00010973,2]
[346991047,1735456245143,-1162.47,0.00011208,2]
[346991048,1735456245152,-151.0,0.00011208,2]
[346991049,1735456245163,-151.0,0.00011208,2]
[346991050,1735456245173,-151.0,0.00011208,2]
[346991051,1735456245182,-151.0,0.00011208,2]
[346991052,1735456245191,-151.0,0.00011208,2]
[346991053,1735456245201,-151.0,0.00011208,2]
[346991054,1735456245210,-657.08,0.00011208,2]
[346991055,1735456245220,-356.36258007,0.00011208,2]
[346991056,1735456245230,-873.454411,0.00011208,2]
[346991057,1735456245239,-151.0,0.00011208,2]
[346991058,1735456245249,-873.454411,0.00011208,2]
[346991059,1735456245259,-500.0,0.00011208,2]
[346991060,1735456245269,-500.0,0.00011208,2]
[346991061,1735456245278,-821.02,0.00011208,2]
[346991062,1735456245288,-500.0,0.00011208,2]
[346991063,1735456245297,-500.0,0.00011208,2]
[346991064,1735456245306,-520.31,0.00011208,2]
[346991065,1735456245316,-500.0,0.00011208,2]
[346991066,1735456245325,-637.09,0.00011209,2]
[346991067,1735456245335,-151.0,0.00011209,2]
[346991068,1735456245344,-292.533554,0.00011209,2]
[346991069,1735456245353,-500.0,0.00011209,2]
[346991070,1735456245366,-151.0,0.00011209,2]
[346991071,1735456245376,-151.0,0.00011209,2]
[346991072,1735456245385,-115.74398532,0.00011209,2]
[346991073,1735456245502,-384.25601468,0.00011209,2]
[346991074,1735456245511,-500.0,0.00011209,2]
[346991075,1735456245521,-157.713868,0.00011209,2]
[346991076,1735456245531,-157.713868,0.00011209,2]
[346991077,1735456245541,-9639.01,0.00011209,2]
[346991078,1735456245550,-500.0,0.00011209,2]
[346991079,1735456245559,-246.44,0.0001121,2]
[346991080,1735456245569,-500.0,0.0001121,2]
[346991081,1735456245578,-763.29,0.00011211,2]
[346991082,1735456245588,-500.0,0.00011211,2]
[346991083,1735456245597,-1366.2,0.00011212,2]
[346991084,1735456245606,-500.0,0.00011212,2]
[346991085,1735456245616,-782.04,0.00011212,2]
[346991086,1735456245627,-1162.47,0.00011482,2]
[346991087,1735456245636,-657.08,0.00011482,2]
[346991088,1735456245645,-500.0,0.00011482,2]
[346991089,1735456245655,-500.0,0.00011482,2]
[346991090,1735456245664,-821.02,0.00011482,2]
[346991091,1735456245673,-435.99,0.00011482,2]
[346991092,1735456245682,-500.0,0.00011482,2]
[346991093,1735456245692,-520.31,0.00011482,2]
[346991094,1735456245701,-500.0,0.00011482,2]
[346991095,1735456245711,-500.0,0.00011483,2]
[346991096,1735456245721,-430.01,0.00011483,2]
[346991097,1735456245730,-500.0,0.00011483,2]
[346991098,1735456245739,-9639.01,0.00011483,2]
[346991099,1735456245749,-500.0,0.00011483,2]
[346991100,1735456245758,-500.0,0.00011484,2]
[346991101,1735456245768,-763.29,0.00011485,2]
[346991102,1735456245777,-500.0,0.00011485,2]
[346991103,1735456245786,-1366.2,0.00011486,2]
[346991104,1735456245795,-782.04,0.00011486,2]
[346991105,1735456245805,-1162.47,0.00011756,2]
[346991106,1735456245814,-657.08,0.00011756,2]
[346991107,1735456245823,-500.0,0.00011756,2]
[346991108,1735456245833,-500.0,0.00011756,2]
[346991109,1735456245842,-821.02,0.00011756,2]
[346991110,1735456245852,-500.0,0.00011756,2]
[346991111,1735456245862,-520.31,0.00011756,2]
[346991112,1735456245871,-500.0,0.00011756,2]
[346991113,1735456245880,-500.0,0.00011757,2]
[346991114,1735456245889,-478.75,0.00011757,2]
[346991115,1735456245899,-526.81,0.00011757,2]
[346991116,1735456245908,-9639.01,0.00011757,2]
[346991117,1735456245917,-500.0,0.00011758,2]
[346991118,1735456245926,-151.0,0.00011758,2]
[346991119,1735456245935,-173.700571,0.00011758,2]
[346991120,1735456245945,-151.0,0.00011758,2]
[346991121,1735456245954,-173.700571,0.00011758,2]
[346991122,1735456245964,-151.0,0.00011758,2]
[346991123,1735456245973,-763.29,0.00011759,2]
[346991124,1735456245983,-500.0,0.00011759,2]
[346991125,1735456245992,-151.0,0.00011759,2]
[346991126,1735456246002,-151.0,0.00011759,2]
[346991127,1735456246011,-1366.2,0.0001176,2]
[346991128,1735456246021,-782.04,0.0001176,2]
[346991129,1735456246030,-1868.02696618,0.00011863,2]
[346991130,1735456246040,-1162.47,0.0001203,2]
[346991131,1735456246049,-657.08,0.0001203,2]
[346991132,1735456246058,-500.0,0.0001203,2]
[346991133,1735456246068,-500.0,0.0001203,2]
[346991134,1735456246077,-821.02,0.0001203,2]
[346991135,1735456246086,-500.0,0.0001203,2]
[346991136,1735456246096,-520.31,0.0001203,2]
[346991137,1735456246105,-324.52,0.0001203,2]
[346991138,1735456246114,-9639.01,0.00012031,2]
[346991139,1735456246123,-500.0,0.00012032,2]
[346991140,1735456246133,-763.29,0.00012033,2]
[346991141,1735456246141,-500.0,0.00012033,2]
[346991142,1735456246151,-1366.2,0.00012034,2]
[346991143,1735456246160,-782.04,0.00012034,2]
[346991144,1735456246169,-289.259,0.00012035,2]
[346991145,1735456246179,-151.0,0.00012035,2]
[346991146,1735456246189,-151.0,0.00012035,2]
[346991147,1735456246198,-151.0,0.00012035,2]
[346991148,1735456246207,-1162.47,0.00012304,2]
[346991149,1735456246217,-657.08,0.00012304,2]
[346991150,1735456246226,-500.0,0.00012304,2]
[346991151,1735456246235,-415.27,0.00012304,2]
[346991152,1735456246245,-821.02,0.00012304,2]
[346991153,1735456246254,-556.24,0.00012304,2]
[346991154,1735456246262,-520.31,0.00012304,2]
[346991155,1735456246273,-500.0,0.00012305,2]
[346991156,1735456246282,-683.51,0.00012305,2]
[346991157,1735456246291,-9639.01,0.00012305,2]
[346991158,1735456246300,-500.0,0.00012306,2]
[346991159,1735456246309,-151.0,0.00012306,2]
[346991160,1735456246318,-151.0,0.00012306,2]
[346991161,1735456246328,-763.29,0.00012307,2]
[346991162,1735456246337,-500.0,0.00012307,2]
[346991163,1735456246346,-1366.2,0.00012308,2]
[346991164,1735456246358,-782.04,0.00012308,2]
[346991165,1735456246369,-1162.47,0.00012578,2]
[346991167,1735456246378,-657.08,0.00012578,2]
[346991168,1735456246388,-500.0,0.00012578,2]
[346991169,1735456246398,-821.02,0.00012578,2]
[346991170,1735456246407,-520.31,0.00012578,2]
[346991171,1735456246416,-151.0,0.00012579,2]
[346991172,1735456246426,-151.0,0.00012579,2]
[346991173,1735456246436,-151.0,0.00012579,2]
[346991174,1735456246446,-234.70033,0.00012579,2]
[346991176,1735456246456,-151.0,0.00012579,2]
[346991177,1735456246465,-151.0,0.00012579,2]
[346991178,1735456246475,-151.0,0.00012579,2]
[346991179,1735456246484,-151.0,0.00012579,2]
[346991180,1735456246494,-873.454411,0.00012579,2]
[346991181,1735456246503,-151.0,0.00012579,2]
[346991182,1735456246513,-873.454411,0.00012579,2]
[346991183,1735456246525,-151.0,0.00012579,2]
[346991185,1735456246534,-151.0,0.00012579,2]
[346991186,1735456246543,-151.0,0.00012579,2]
[346991187,1735456246552,-9639.01,0.00012579,2]
[346991189,1735456246562,-151.0,0.00012579,2]
[346991191,1735456246571,-152.131241,0.00012579,2]
[346991193,1735456246581,-151.0,0.00012579,2]
[346991195,1735456246590,-500.0,0.0001258,2]
[346991198,1735456246600,-763.29,0.00012581,2]
[346991200,1735456246609,-500.0,0.00012581,2]
[346991202,1735456246618,-1366.2,0.00012582,2]
[346991204,1735456246628,-782.04,0.00012582,2]
[346991206,1735456246637,-1868.02696618,0.00012753,2]
[346991208,1735456246647,-1162.47,0.00012852,2]
[346991210,1735456246656,-657.08,0.00012852,2]
[346991212,1735456246665,-500.0,0.00012852,2]
[346991222,1735456246745,-821.02,0.00012852,2]
[346991224,1735456246754,-520.31,0.00012852,2]
[346991226,1735456246763,-500.0,0.00012853,2]
[346991228,1735456246772,-151.0,0.00012853,2]
[346991230,1735456246781,-151.0,0.00012853,2]
[346991232,1735456246790,-151.0,0.00012853,2]
[346991234,1735456246800,-157.713868,0.00012853,2]
[346991235,1735456246809,-157.713868,0.00012853,2]
[346991238,1735456246818,-9639.01,0.00012853,2]
[346991240,1735456246827,-336.51,0.00012854,2]
[346991242,1735456246836,-763.29,0.00012855,2]
[346991244,1735456246845,-500.0,0.00012855,2]
[346991246,1735456246854,-1366.2,0.00012856,2]
[346991248,1735456246864,-782.04,0.00012856,2]
[346991250,1735456246873,-168.4980594,0.000129,2]
[346991252,1735456246882,-168.4980594,0.00013041,2]
[346991254,1735456246891,-1162.47,0.00013126,2]
[346991256,1735456246900,-657.08,0.00013126,2]
[346991258,1735456246910,-500.0,0.00013126,2]
[346991260,1735456246919,-821.02,0.00013126,2]
[346991262,1735456246928,-520.31,0.00013126,2]
[346991264,1735456246937,-9639.01,0.00013127,2]
[346991266,1735456246947,-763.29,0.00013129,2]
[346991268,1735456246956,-500.0,0.00013129,2]
[346991270,1735456246965,-500.0,0.00013129,2]
[346991272,1735456246974,-1366.2,0.0001313,2]
[346991274,1735456246983,-782.04,0.0001313,2]
[346991276,1735456246993,-1162.47,0.000134,2]
[346991278,1735456247002,-657.08,0.000134,2]
[346991279,1735456247011,-500.0,0.000134,2]
[346991281,1735456247024,-821.02,0.000134,2]
[346991283,1735456247034,-520.31,0.000134,2]
[346991286,1735456247044,-9639.01,0.00013401,2]
[346991287,1735456247054,-225.827086,0.00013402,2]
[346991289,1735456247063,-225.827086,0.00013402,2]
[346991292,1735456247073,-763.29,0.00013403,2]
[346991293,1735456247082,-500.0,0.00013403,2]
[346991295,1735456247091,-1366.2,0.00013404,2]
[346991298,1735456247101,-782.04,0.00013404,2]
[346991300,1735456247111,-1162.47,0.00013674,2]
[346991301,1735456247119,-657.08,0.00013674,2]
[346991304,1735456247129,-619.58,0.00013674,2]
[346991305,1735456247138,-821.02,0.00013674,2]
[346991307,1735456247147,-520.31,0.00013674,2]
[346991309,1735456247157,-151.0,0.00013675,2]
[346991312,1735456247166,-173.700571,0.00013675,2]
[346991313,1735456247175,-151.0,0.00013675,2]
[346991315,1735456247185,-173.700571,0.00013675,2]
[346991317,1735456247194,-151.0,0.00013675,2]
[346991319,1735456247204,-9639.01,0.00013675,2]
[346991321,1735456247214,-500.0,0.00013676,2]
[346991323,1735456247223,-462.26068298,0.00013676,2]
[346991325,1735456247233,-763.29,0.00013677,2]
[346991327,1735456247242,-500.0,0.00013677,2]
[346991329,1735456247251,-151.0,0.00013677,2]
[346991331,1735456247261,-151.0,0.00013677,2]
[346991333,1735456247271,-1366.2,0.00013678,2]
[346991335,1735456247281,-782.04,0.00013678,2]
[346991337,1735456247290,-191.5598913,0.00013699,2]
[346991339,1735456247299,-500.0,0.00013699,2]
[346991341,1735456247308,-500.0,0.00013699,2]
[346991343,1735456247318,-155.73914052,0.00013699,2]
[346991345,1735456247327,-1162.47,0.00013948,2]
[346991347,1735456247337,-657.08,0.00013948,2]
[346991349,1735456247346,-821.02,0.00013948,2]
[346991351,1735456247356,-520.31,0.00013948,2]
[346991353,1735456247369,-160.44363532,0.00013948,2]
[346991355,1735456247378,-9639.01,0.00013949,2]
[346991357,1735456247387,-151.0,0.0001395,2]
[346991359,1735456247397,-285.047819,0.0001395,2]
[346991361,1735456247406,-683.51,0.0001395,2]
[346991363,1735456247416,-763.29,0.00013951,2]
[346991365,1735456247425,-500.0,0.00013951,2]
[346991367,1735456247436,-193.548,0.00013952,2]
[346991369,1735456247445,-1366.2,0.00013952,2]
[346991371,1735456247455,-782.04,0.00013952,2]
[346991373,1735456247464,-400.0,0.00013973,2]
[346991375,1735456247474,-1162.47,0.00014222,2]
[346991377,1735456247483,-657.08,0.00014222,2]
[346991379,1735456247493,-821.02,0.00014222,2]
[346991381,1735456247502,-520.31,0.00014222,2]
[346991383,1735456247512,-151.0,0.00014223,2]
[346991385,1735456247522,-151.0,0.00014223,2]
[346991387,1735456247532,-151.0,0.00014223,2]
[346991389,1735456247542,-9639.01,0.00014223,2]
[346991391,1735456247551,-763.29,0.00014225,2]
[346991393,1735456247561,-500.0,0.00014225,2]
[346991395,1735456247570,-151.0,0.00014225,2]
[346991397,1735456247579,-151.0,0.00014225,2]
[346991399,1735456247589,-151.0,0.00014225,2]
[346991401,1735456247598,-151.0,0.00014225,2]
[346991403,1735456247607,-151.0,0.00014225,2]
[346991405,1735456247616,-873.454411,0.00014225,2]
[346991407,1735456247625,-151.833158,0.00014225,2]
[346991409,1735456247635,-873.454411,0.00014225,2]
[346991411,1735456247644,-217.666756,0.00014226,2]
[346991413,1735456247654,-151.0,0.00014226,2]
[346991415,1735456247663,-1366.2,0.00014226,2]
[346991417,1735456247672,-151.0,0.00014226,2]
[346991419,1735456247681,-782.04,0.00014226,2]
[346991421,1735456247690,-151.0,0.00014226,2]
[346991423,1735456247699,-151.0,0.00014226,2]
[346991425,1735456247708,-151.0,0.00014226,2]
[346991427,1735456247717,-152.847088,0.00014226,2]
[346991429,1735456247727,-151.0,0.00014226,2]
[346991430,1735456247736,-151.0,0.00014226,2]
[346991432,1735456247745,-1162.47,0.00014496,2]